[Event "*** SCC Grand Prix: Titled Tuesday Blitz"]
[Site "Chess.com"]
[Date "2020.06.23"]
[Round "1"]
[White "cholzan"]
[Black "Sven_Tica"]
[Result "0-1"]
[WhiteElo "2316"]
[BlackElo "2645"]
[TimeControl "180+1"]
[EndTime "10:08:24 PDT"]
[Termination "Sven_Tica won by resignation"]

1. d4 {[%clk 0:03:00.9]} 1... d5 {[%clk 0:02:41.9]} 2. c4 {[%clk 0:03:01.1]}
2... e6 {[%clk 0:02:42.1]} 3. Nf3 {[%clk 0:03:01.6]} 3... Nf6 {[%clk 0:02:38.6]}
4. g3 {[%clk 0:03:01.8]} 4... Be7 {[%clk 0:02:37.8]} 5. Bg2 {[%clk 0:03:02.2]}
5... O-O {[%clk 0:02:38.7]} 6. O-O {[%clk 0:03:02.4]} 6... dxc4 {[%clk 0:02:38]}
7. Qc2 {[%clk 0:03:02.7]} 7... b5 {[%clk 0:02:35.8]} 8. b3 {[%clk 0:02:58.9]}
8... cxb3 {[%clk 0:02:33.9]} 9. axb3 {[%clk 0:02:59.8]} 9... Bb7 {[%clk
0:02:34.1]} 10. Nbd2 {[%clk 0:02:58.9]} 10... a6 {[%clk 0:02:34.7]} 11. Bb2
{[%clk 0:02:58.1]} 11... Nbd7 {[%clk 0:02:33.9]} 12. Rfc1 {[%clk 0:02:57.4]}
12... c5 {[%clk 0:02:33.6]} 13. dxc5 {[%clk 0:02:48.4]} 13... Bxc5 {[%clk
0:02:31.1]} 14. Bxf6 {[%clk 0:02:18.5]} 14... Qxf6 {[%clk 0:02:27]} 15. Ne4
{[%clk 0:02:18]} 15... Bxe4 {[%clk 0:02:25]} 16. Qxe4 {[%clk 0:02:18.9]} 16...
a5 {[%clk 0:02:02.6]} 17. Qc6 {[%clk 0:02:01.5]} 17... Rfd8 {[%clk 0:01:56.2]}
18. Qxb5 {[%clk 0:01:55.2]} 18... Bb4 {[%clk 0:01:56.4]} 19. Rd1 {[%clk
0:01:28.5]} 19... Rab8 {[%clk 0:01:47.9]} 20. Qc6 {[%clk 0:01:15.5]} 20... Nc5
{[%clk 0:01:45.8]} 21. Rxd8+ {[%clk 0:01:08.9]} 21... Rxd8 {[%clk 0:01:46.7]}
22. Rc1 {[%clk 0:01:08.8]} 22... Nxb3 {[%clk 0:01:46]} 23. Rb1 {[%clk
0:01:04.5]} 23... Nd4 {[%clk 0:01:42.6]} 24. Nxd4 {[%clk 0:01:01.5]} 24... Qxd4
{[%clk 0:01:43.5]} 25. e3 {[%clk 0:00:59.6]} 25... Qf6 {[%clk 0:01:38.2]} 26.
Rc1 {[%clk 0:00:54.7]} 26... h5 {[%clk 0:01:37.5]} 27. Qb7 {[%clk 0:00:54.3]}
27... g6 {[%clk 0:01:28.4]} 28. Rc8 {[%clk 0:00:52.9]} 28... Kg7 {[%clk
0:01:24.1]} 29. Rxd8 {[%clk 0:00:52.1]} 29... Qxd8 {[%clk 0:01:25]} 30. Qe4
{[%clk 0:00:49.1]} 30... Qd1+ {[%clk 0:01:22.2]} 31. Bf1 {[%clk 0:00:49.2]}
31... Bc3 {[%clk 0:01:22.8]} 32. Qc4 {[%clk 0:00:44.5]} 32... Qd2 {[%clk
0:01:11.8]} 33. Kg2 {[%clk 0:00:43.4]} 33... Qb2 {[%clk 0:01:08]} 34. Qb5 {[%clk
0:00:39.8]} 34... Qc2 {[%clk 0:01:06.1]} 35. Bd3 {[%clk 0:00:38.9]} 35... Qa2
{[%clk 0:01:02.9]} 36. Bc4 {[%clk 0:00:37.4]} 36... Qd2 {[%clk 0:00:59.9]} 37.
Qb7 {[%clk 0:00:29.4]} 37... Qd6 {[%clk 0:01:00.2]} 38. Qb5 {[%clk 0:00:27.9]}
38... Be1 {[%clk 0:00:54.9]} 39. Qb2+ {[%clk 0:00:26.5]} 39... Kg8 {[%clk
0:00:49]} 40. Bb5 {[%clk 0:00:22.6]} 40... Bb4 {[%clk 0:00:46.7]} 41. Ba4 {[%clk
0:00:21.7]} 41... Qd5+ {[%clk 0:00:45.7]} 42. Kg1 {[%clk 0:00:20.6]} 42... h4
{[%clk 0:00:42.6]} 43. Qd4 {[%clk 0:00:20.5]} 43... Qa2 {[%clk 0:00:39.8]} 44.
Qd8+ {[%clk 0:00:19.1]} 44... Kg7 {[%clk 0:00:38.2]} 45. Be8 {[%clk 0:00:18.4]}
45... h3 {[%clk 0:00:31.2]} 46. Qd4+ {[%clk 0:00:17.2]} 46... Kf8 {[%clk
0:00:29.5]} 47. Bb5 {[%clk 0:00:16.9]} 47... Be1 {[%clk 0:00:26.1]} 48. Qh8+
{[%clk 0:00:15.1]} 48... Ke7 {[%clk 0:00:25.8]} 49. Qh4+ {[%clk 0:00:15]} 49...
Kd6 {[%clk 0:00:20.6]} 50. Qd4+ {[%clk 0:00:14.5]} 50... Qd5 {[%clk 0:00:21.3]}
51. Qxd5+ {[%clk 0:00:12.1]} 51... Kxd5 {[%clk 0:00:21.4]} 52. f4 {[%clk
0:00:10.5]} 52... Kc5 {[%clk 0:00:20.6]} 53. Be8 {[%clk 0:00:09.7]} 53... f6
{[%clk 0:00:20.6]} 54. Bxg6 {[%clk 0:00:09.2]} 54... a4 {[%clk 0:00:20.3]} 55.
Bf7 {[%clk 0:00:09.5]} 55... Kd6 {[%clk 0:00:19.9]} 56. f5 {[%clk 0:00:09.8]}
56... exf5 {[%clk 0:00:19.3]} 57. Kf1 {[%clk 0:00:09.1]} 57... Bc3 {[%clk
0:00:18.5]} 58. Ke2 {[%clk 0:00:09.3]} 58... Be5 {[%clk 0:00:18.2]} 59. Kd3
{[%clk 0:00:09.5]} 59... Bxg3 {[%clk 0:00:18.6]} 60. Bg6 {[%clk 0:00:09.4]}
60... Ke5 {[%clk 0:00:18]} 61. e4 {[%clk 0:00:08.8]} 61... fxe4+ {[%clk
0:00:16.4]} 62. Bxe4 {[%clk 0:00:09.7]} 62... a3 {[%clk 0:00:15.5]} 0-1

[Event "*** SCC Grand Prix: Titled Tuesday Blitz"]
[Site "Chess.com"]
[Date "2020.06.23"]
[Round "1"]
[White "otrov-11"]
[Black "exoticprincess"]
[Result "0-1"]
[WhiteElo "2399"]
[BlackElo "2782"]
[TimeControl "180+1"]
[EndTime "10:08:25 PDT"]
[Termination "exoticprincess won by resignation"]

1. Nf3 {[%clk 0:02:58.9]} 1... d5 {[%clk 0:02:59.1]} 2. c4 {[%clk 0:02:57.5]}
2... c6 {[%clk 0:02:56.7]} 3. d4 {[%clk 0:02:53.4]} 3... Nf6 {[%clk 0:02:56.8]}
4. Nc3 {[%clk 0:02:51.6]} 4... dxc4 {[%clk 0:02:57]} 5. a4 {[%clk 0:02:50.6]}
5... a5 {[%clk 0:02:57.3]} 6. e3 {[%clk 0:02:47.3]} 6... Bg4 {[%clk 0:02:57.2]}
7. Bxc4 {[%clk 0:02:47.1]} 7... e6 {[%clk 0:02:57.9]} 8. O-O {[%clk 0:02:44.9]}
8... Bb4 {[%clk 0:02:56.9]} 9. h3 {[%clk 0:02:40.1]} 9... Bh5 {[%clk 0:02:57.1]}
10. Be2 {[%clk 0:02:37.3]} 10... Nbd7 {[%clk 0:02:56.5]} 11. Bd2 {[%clk
0:02:31]} 11... O-O {[%clk 0:02:46.3]} 12. Qc2 {[%clk 0:02:29.8]} 12... Bg6
{[%clk 0:02:44.2]} 13. Bd3 {[%clk 0:02:29.4]} 13... Rc8 {[%clk 0:02:39]} 14.
Bxg6 {[%clk 0:02:27.4]} 14... hxg6 {[%clk 0:02:39.1]} 15. Ne4 {[%clk 0:02:22.4]}
15... Qe7 {[%clk 0:02:35.8]} 16. Rac1 {[%clk 0:02:17.1]} 16... Nxe4 {[%clk
0:02:32.7]} 17. Qxe4 {[%clk 0:02:16.4]} 17... Nf6 {[%clk 0:02:33.3]} 18. Qc2
{[%clk 0:02:10.7]} 18... Rfd8 {[%clk 0:02:32.4]} 19. Qb3 {[%clk 0:02:11.1]}
19... Nd5 {[%clk 0:02:29.3]} 20. Bxb4 {[%clk 0:02:07.4]} 20... Qxb4 {[%clk
0:02:28.7]} 21. Qxb4 {[%clk 0:02:05.4]} 21... Nxb4 {[%clk 0:02:29.6]} 22. Rfd1
{[%clk 0:02:05.4]} 22... f6 {[%clk 0:02:27.7]} 23. Kf1 {[%clk 0:01:57.1]} 23...
Kf7 {[%clk 0:02:27.9]} 24. Ke2 {[%clk 0:01:56.9]} 24... g5 {[%clk 0:02:27.4]}
25. Ne1 {[%clk 0:01:56.7]} 25... Na2 {[%clk 0:02:13.6]} 26. Rc5 {[%clk
0:01:46.3]} 26... b6 {[%clk 0:02:13.8]} 27. Rc2 {[%clk 0:01:45.5]} 27... Nb4
{[%clk 0:02:14]} 28. Rc3 {[%clk 0:01:45.2]} 28... Nd5 {[%clk 0:02:09.2]} 29. Rc2
{[%clk 0:01:43.2]} 29... Nb4 {[%clk 0:02:03.3]} 30. Rc3 {[%clk 0:01:42.9]} 30...
Ke7 {[%clk 0:01:49.9]} 31. Nd3 {[%clk 0:01:42.4]} 31... Nd5 {[%clk 0:01:46.2]}
32. Rc2 {[%clk 0:01:42.3]} 32... Kd7 {[%clk 0:01:42.7]} 33. Rdc1 {[%clk
0:01:38.4]} 33... Rc7 {[%clk 0:01:40.6]} 34. Rc4 {[%clk 0:01:35.3]} 34... Ne7
{[%clk 0:01:39]} 35. R4c2 {[%clk 0:01:31.5]} 35... Kc8 {[%clk 0:01:38]} 36. Rc4
{[%clk 0:01:29.5]} 36... Kb7 {[%clk 0:01:38]} 37. R4c2 {[%clk 0:01:29.3]} 37...
Nd5 {[%clk 0:01:38.2]} 38. Rc4 {[%clk 0:01:28.8]} 38... Ne7 {[%clk 0:01:37]} 39.
R4c2 {[%clk 0:01:28.4]} 39... Rcd7 {[%clk 0:01:37.3]} 40. Ne1 {[%clk 0:01:16.2]}
40... Rd6 {[%clk 0:01:35.3]} 41. b3 {[%clk 0:01:03.1]} 41... Nd5 {[%clk
0:01:35.1]} 42. Nd3 {[%clk 0:00:56.1]} 42... Nc7 {[%clk 0:01:34.9]} 43. Nb2
{[%clk 0:00:53.7]} 43... Na6 {[%clk 0:01:33.6]} 44. Nc4 {[%clk 0:00:53.2]} 44...
R6d7 {[%clk 0:01:33.9]} 45. Rd2 {[%clk 0:00:51.7]} 45... Nb4 {[%clk 0:01:34]}
46. Rcd1 {[%clk 0:00:47.6]} 46... Nd5 {[%clk 0:01:33.2]} 47. Rc1 {[%clk
0:00:44.6]} 47... Nb4 {[%clk 0:01:33.4]} 48. Rcd1 {[%clk 0:00:44.3]} 48... Ka6
{[%clk 0:01:33.9]} 49. Ra1 {[%clk 0:00:41.4]} 49... Nd5 {[%clk 0:01:31.8]} 50.
Rc2 {[%clk 0:00:35.7]} 50... Nb4 {[%clk 0:01:28.5]} 51. Rd2 {[%clk 0:00:35.6]}
51... Rh8 {[%clk 0:01:27.2]} 52. Rb2 {[%clk 0:00:25.4]} 52... Kb7 {[%clk
0:01:26.4]} 53. Rd2 {[%clk 0:00:25.1]} 53... Rh4 {[%clk 0:01:26.5]} 54. Rb2
{[%clk 0:00:22.3]} 54... Rd8 {[%clk 0:01:21.7]} 55. Rd1 {[%clk 0:00:21.7]} 55...
Kc7 {[%clk 0:01:21.6]} 56. Rbd2 {[%clk 0:00:20.7]} 56... g4 {[%clk 0:01:21.4]}
57. hxg4 {[%clk 0:00:20.2]} 57... Rxg4 {[%clk 0:01:22.3]} 58. g3 {[%clk
0:00:20.6]} 58... Rh8 {[%clk 0:01:22]} 59. Kf3 {[%clk 0:00:20.6]} 59... Rg5
{[%clk 0:01:22.1]} 60. Kg2 {[%clk 0:00:19.7]} 60... Rgh5 {[%clk 0:01:22]} 61.
Kf3 {[%clk 0:00:19]} 61... Rh2 {[%clk 0:01:21.1]} 62. Rc1 {[%clk 0:00:19]} 62...
R8h5 {[%clk 0:01:18.4]} 63. e4 {[%clk 0:00:13.2]} 63... Rh8 {[%clk 0:01:12.3]}
64. Ne3 {[%clk 0:00:11.4]} 64... Kb7 {[%clk 0:01:09.6]} 65. d5 {[%clk 0:00:09]}
65... exd5 {[%clk 0:01:04.9]} 66. exd5 {[%clk 0:00:09.2]} 66... cxd5 {[%clk
0:01:01.3]} 67. Nxd5 {[%clk 0:00:09.4]} 67... Nc6 {[%clk 0:01:01.9]} 68. Ne3
{[%clk 0:00:05.6]} 68... Ne5+ {[%clk 0:01:00.8]} 69. Ke2 {[%clk 0:00:05.8]}
69... Rxf2+ {[%clk 0:00:57.8]} 70. Kxf2 {[%clk 0:00:04.3]} 70... Rh2+ {[%clk
0:00:58.3]} 71. Ke1 {[%clk 0:00:01.9]} 71... Nf3+ {[%clk 0:00:57.9]} 72. Kf1
{[%clk 0:00:01.3]} 72... Nxd2+ {[%clk 0:00:58.2]} 73. Kg1 {[%clk 0:00:02.2]}
73... Nf3+ {[%clk 0:00:59.1]} 74. Kf1 {[%clk 0:00:02.5]} 74... Rh1+ {[%clk
0:00:59.1]} 0-1

[Event "*** SCC Grand Prix: Titled Tuesday Blitz"]
[Site "Chess.com"]
[Date "2020.06.23"]
[Round "1"]
[White "Orest_Vovk"]
[Black "124chess"]
[Result "1-0"]
[WhiteElo "2400"]
[BlackElo "2717"]
[TimeControl "180+1"]
[EndTime "10:08:25 PDT"]
[Termination "Orest_Vovk won by resignation"]

1. h4 {[%clk 0:02:59.8]} 1... e6 {[%clk 0:03:00.9]} 2. h5 {[%clk 0:02:59.3]}
2... d5 {[%clk 0:03:00.9]} 3. e4 {[%clk 0:02:53.8]} 3... dxe4 {[%clk 0:03:00.4]}
4. Nc3 {[%clk 0:02:50.1]} 4... f5 {[%clk 0:02:57.5]} 5. d3 {[%clk 0:02:48.2]}
5... exd3 {[%clk 0:02:56.3]} 6. Nf3 {[%clk 0:02:46.5]} 6... dxc2 {[%clk
0:02:54.1]} 7. Qxc2 {[%clk 0:02:46.5]} 7... Bd6 {[%clk 0:02:53.7]} 8. Bg5 {[%clk
0:02:45.6]} 8... Nf6 {[%clk 0:02:49.6]} 9. h6 {[%clk 0:02:43.5]} 9... g6 {[%clk
0:02:49.9]} 10. O-O-O {[%clk 0:02:42.3]} 10... O-O {[%clk 0:02:47.5]} 11. Bc4
{[%clk 0:02:39.7]} 11... Nc6 {[%clk 0:01:59.1]} 12. Rhe1 {[%clk 0:02:36.6]}
12... Qe8 {[%clk 0:01:53.2]} 13. Nb5 {[%clk 0:02:30.4]} 13... Ne4 {[%clk
0:01:24.7]} 14. Rxe4 {[%clk 0:02:23.9]} 14... fxe4 {[%clk 0:01:23.6]} 15. Qxe4
{[%clk 0:02:24.8]} 15... Be7 {[%clk 0:00:57.2]} 16. Nxc7 {[%clk 0:02:01.8]}
16... Bxg5+ {[%clk 0:00:56.5]} 17. Nxg5 {[%clk 0:02:02.6]} 17... Qe7 {[%clk
0:00:57.1]} 18. Ngxe6 {[%clk 0:01:52.6]} 18... Bxe6 {[%clk 0:00:57]} 19. Qxe6+
{[%clk 0:01:44.8]} 19... Kh8 {[%clk 0:00:44.2]} 20. Qxe7 {[%clk 0:01:42.1]}
20... Nxe7 {[%clk 0:00:45.1]} 21. Nxa8 {[%clk 0:01:42.2]} 21... Rxa8 {[%clk
0:00:45.5]} 22. Rd7 {[%clk 0:01:33.8]} 22... Nf5 {[%clk 0:00:45.5]} 23. Rxb7
{[%clk 0:01:30.7]} 23... Nxh6 {[%clk 0:00:44]} 24. Bd5 {[%clk 0:01:24.7]} 24...
Rc8+ {[%clk 0:00:43.2]} 25. Kb1 {[%clk 0:01:24.5]} 25... Rc5 {[%clk 0:00:39]}
26. Bf3 {[%clk 0:01:17.3]} 26... a5 {[%clk 0:00:39.1]} 27. a3 {[%clk 0:01:13.3]}
27... Nf5 {[%clk 0:00:37.2]} 28. b4 {[%clk 0:01:13.1]} 28... axb4 {[%clk
0:00:38.1]} 29. axb4 {[%clk 0:01:13.6]} 29... Rc3 {[%clk 0:00:36.5]} 30. Kb2
{[%clk 0:01:12.2]} 30... Rd3 {[%clk 0:00:36.5]} 31. Kc2 {[%clk 0:01:10.4]} 31...
Ra3 {[%clk 0:00:32.9]} 32. Kb2 {[%clk 0:01:06.6]} 32... Rd3 {[%clk 0:00:32.8]}
33. b5 {[%clk 0:01:06.3]} 33... Rd2+ {[%clk 0:00:26.4]} 34. Kc3 {[%clk 0:01:05]}
34... Rxf2 {[%clk 0:00:24.3]} 35. b6 {[%clk 0:01:04.5]} 35... Rf1 {[%clk
0:00:07.2]} 36. Rb8+ {[%clk 0:00:35]} 36... Kg7 {[%clk 0:00:07]} 37. b7 {[%clk
0:00:30.9]} 37... Nd6 {[%clk 0:00:07.2]} 38. Rg8+ {[%clk 0:00:24.9]} 38... Kxg8
{[%clk 0:00:07.5]} 39. b8=Q+ {[%clk 0:00:25]} 39... Kg7 {[%clk 0:00:08.4]} 40.
Qxd6 {[%clk 0:00:24.8]} 40... Rh1 {[%clk 0:00:08.7]} 41. Qd4+ {[%clk 0:00:24]}
41... Kh6 {[%clk 0:00:08.6]} 42. Qf6 {[%clk 0:00:21.6]} 42... Rc1+ {[%clk
0:00:06.1]} 43. Kd2 {[%clk 0:00:21.5]} 43... Rh1 {[%clk 0:00:06.8]} 44. g4
{[%clk 0:00:19.5]} 44... Rh2+ {[%clk 0:00:07]} 45. Ke3 {[%clk 0:00:19.2]} 45...
Re2+ {[%clk 0:00:06.7]} 46. Kd4 {[%clk 0:00:12.9]} 46... Rd2+ {[%clk 0:00:06.2]}
47. Kc5 {[%clk 0:00:10]} 47... Rd5+ {[%clk 0:00:06.3]} 48. Kc6 {[%clk
0:00:07.8]} 48... Rc5+ {[%clk 0:00:05.6]} 49. Kd7 {[%clk 0:00:07.5]} 49... Rc7+
{[%clk 0:00:05.5]} 50. Ke8 {[%clk 0:00:03.1]} 50... Rc8+ {[%clk 0:00:04.2]} 51.
Kf7 {[%clk 0:00:03.4]} 51... Rf8+ {[%clk 0:00:03.8]} 52. Ke6 {[%clk 0:00:02.3]}
52... Rxf6+ {[%clk 0:00:01.9]} 53. Kxf6 {[%clk 0:00:03.2]} 53... g5 {[%clk
0:00:02.8]} 54. Kf5 {[%clk 0:00:03.6]} 54... Kg7 {[%clk 0:00:03.1]} 55. Kxg5
{[%clk 0:00:04]} 55... h6+ {[%clk 0:00:03.9]} 56. Kh5 {[%clk 0:00:04.2]} 56...
Kh7 {[%clk 0:00:04.4]} 57. Be4+ {[%clk 0:00:04.7]} 57... Kg7 {[%clk 0:00:05.3]}
58. Bd3 {[%clk 0:00:05.1]} 58... Kf6 {[%clk 0:00:05.1]} 59. Kxh6 {[%clk
0:00:05.3]} 59... Ke5 {[%clk 0:00:06]} 60. g5 {[%clk 0:00:05.1]} 60... Ke6
{[%clk 0:00:06.9]} 61. g6 {[%clk 0:00:05.7]} 1-0

[Event "*** SCC Grand Prix: Titled Tuesday Blitz"]
[Site "Chess.com"]
[Date "2020.06.23"]
[Round "1"]
[White "fischercapa"]
[Black "Fandorine"]
[Result "0-1"]
[WhiteElo "2449"]
[BlackElo "2899"]
[TimeControl "180+1"]
[EndTime "10:08:26 PDT"]
[Termination "Fandorine won by resignation"]

1. e4 {[%clk 0:02:59.5]} 1... e5 {[%clk 0:02:59.3]} 2. Nc3 {[%clk 0:02:59.6]}
2... Nf6 {[%clk 0:02:58.4]} 3. f4 {[%clk 0:03:00.1]} 3... d5 {[%clk 0:02:56]} 4.
fxe5 {[%clk 0:03:00.5]} 4... Nxe4 {[%clk 0:02:55.6]} 5. Qf3 {[%clk 0:03:01.1]}
5... Nxc3 {[%clk 0:02:39.5]} 6. dxc3 {[%clk 0:03:02]} 6... Nc6 {[%clk
0:02:38.7]} 7. Bf4 {[%clk 0:03:02.2]} 7... Be6 {[%clk 0:02:25.8]} 8. O-O-O
{[%clk 0:03:02]} 8... Bc5 {[%clk 0:02:22.2]} 9. Ne2 {[%clk 0:02:58.2]} 9... Qd7
{[%clk 0:02:21.5]} 10. h3 {[%clk 0:02:57.7]} 10... O-O-O {[%clk 0:02:15.7]} 11.
Nd4 {[%clk 0:02:57.7]} 11... Bxd4 {[%clk 0:02:12.3]} 12. cxd4 {[%clk 0:02:57.1]}
12... Ne7 {[%clk 0:02:07.3]} 13. g4 {[%clk 0:02:53.9]} 13... Kb8 {[%clk
0:02:07.6]} 14. Rg1 {[%clk 0:02:27.4]} 14... Rdg8 {[%clk 0:02:02.2]} 15. Bg2
{[%clk 0:01:39.6]} 15... Nc8 {[%clk 0:02:01.3]} 16. Kb1 {[%clk 0:01:38.8]} 16...
Nb6 {[%clk 0:02:01.4]} 17. Rd3 {[%clk 0:01:37.6]} 17... a6 {[%clk 0:01:59.5]}
18. Bc1 {[%clk 0:01:31.5]} 18... Rf8 {[%clk 0:01:57]} 19. b3 {[%clk 0:01:26.7]}
19... h6 {[%clk 0:01:51.7]} 20. Ba3 {[%clk 0:01:25.9]} 20... Rd8 {[%clk
0:01:40.4]} 21. Rc1 {[%clk 0:01:19.3]} 21... h5 {[%clk 0:01:30.2]} 22. gxh5
{[%clk 0:01:18.2]} 22... Bf5 {[%clk 0:01:30.6]} 23. Re3 {[%clk 0:01:16.2]} 23...
g6 {[%clk 0:01:13]} 24. hxg6 {[%clk 0:01:14.9]} 24... fxg6 {[%clk 0:01:13.9]}
25. Ka1 {[%clk 0:01:12.7]} 25... Qe6 {[%clk 0:01:09.8]} 26. c4 {[%clk
0:01:04.4]} 26... Rh4 {[%clk 0:01:05.3]} 27. Bc5 {[%clk 0:01:00.4]} 27... Re4
{[%clk 0:00:50]} 28. cxd5 {[%clk 0:00:35.6]} 28... Rxe3 {[%clk 0:00:48.9]} 29.
dxe6 {[%clk 0:00:32.4]} 29... Rxf3 {[%clk 0:00:49.2]} 30. Bxf3 {[%clk
0:00:32.1]} 30... Bxe6 {[%clk 0:00:48.8]} 31. Rg1 {[%clk 0:00:31.9]} 31... Bf5
{[%clk 0:00:35.5]} 32. h4 {[%clk 0:00:23.9]} 32... Nd5 {[%clk 0:00:23.8]} 33.
Rg5 {[%clk 0:00:19.1]} 33... b6 {[%clk 0:00:20.2]} 34. Ba3 {[%clk 0:00:17.7]}
34... Nf4 {[%clk 0:00:19.3]} 35. Bb2 {[%clk 0:00:14.4]} 35... Ne6 {[%clk
0:00:19.6]} 36. Rg1 {[%clk 0:00:11.6]} 36... Nxd4 {[%clk 0:00:20]} 37. Bd1
{[%clk 0:00:11.1]} 37... Ne6 {[%clk 0:00:17.9]} 38. a3 {[%clk 0:00:11]} 38... a5
{[%clk 0:00:17.8]} 39. h5 {[%clk 0:00:11.2]} 39... gxh5 {[%clk 0:00:18.1]} 40.
Bxh5 {[%clk 0:00:11.6]} 40... Nc5 {[%clk 0:00:17.3]} 41. Bd1 {[%clk 0:00:11.6]}
41... Be6 {[%clk 0:00:10.8]} 42. b4 {[%clk 0:00:11.2]} 42... axb4 {[%clk
0:00:11.4]} 43. axb4 {[%clk 0:00:11.4]} 43... Nd3 {[%clk 0:00:10.5]} 44. Bc3
{[%clk 0:00:12]} 44... Nf4 {[%clk 0:00:09.8]} 45. Bc2 {[%clk 0:00:10.3]} 45...
Ne2 {[%clk 0:00:09.5]} 46. Re1 {[%clk 0:00:05.1]} 46... Nxc3 {[%clk 0:00:09.7]}
47. Kb2 {[%clk 0:00:06]} 47... Nd5 {[%clk 0:00:09.7]} 48. Bb3 {[%clk 0:00:06.1]}
48... Nxb4 {[%clk 0:00:07.2]} 49. Bxe6 {[%clk 0:00:06.4]} 49... Nd3+ {[%clk
0:00:07.9]} 50. Kc3 {[%clk 0:00:07.2]} 50... Nxe1 {[%clk 0:00:08.6]} 51. Bc4
{[%clk 0:00:07.4]} 51... Nf3 {[%clk 0:00:08]} 52. e6 {[%clk 0:00:08.3]} 52...
Ne5 {[%clk 0:00:06.8]} 53. Bb5 {[%clk 0:00:08.7]} 53... c6 {[%clk 0:00:07.1]}
54. Be2 {[%clk 0:00:08]} 54... Re8 {[%clk 0:00:07.3]} 55. Kd4 {[%clk 0:00:07.5]}
55... Rxe6 {[%clk 0:00:07.4]} 56. Bg4 {[%clk 0:00:07.7]} 56... Nxg4 {[%clk
0:00:07.4]} 0-1

[Event "*** SCC Grand Prix: Titled Tuesday Blitz"]
[Site "Chess.com"]
[Date "2020.06.23"]
[Round "1"]
[White "chigorin28"]
[Black "BogdanDeac"]
[Result "0-1"]
[WhiteElo "2418"]
[BlackElo "2827"]
[TimeControl "180+1"]
[EndTime "10:08:27 PDT"]
[Termination "BogdanDeac won on time"]

1. e4 {[%clk 0:03:00.9]} 1... c5 {[%clk 0:02:59.7]} 2. Nf3 {[%clk 0:03:00.6]}
2... d6 {[%clk 0:02:59.6]} 3. c3 {[%clk 0:03:00.8]} 3... Nf6 {[%clk 0:02:59.1]}
4. Bd3 {[%clk 0:03:00.7]} 4... Nc6 {[%clk 0:02:53.2]} 5. h3 {[%clk 0:02:59.2]}
5... d5 {[%clk 0:02:34.8]} 6. e5 {[%clk 0:02:40]} 6... Nh5 {[%clk 0:02:30.9]} 7.
O-O {[%clk 0:02:26.3]} 7... c4 {[%clk 0:02:18.6]} 8. Bc2 {[%clk 0:02:23.7]} 8...
Nf4 {[%clk 0:02:18.7]} 9. d4 {[%clk 0:01:59.7]} 9... cxd3 {[%clk 0:02:16.8]} 10.
Bxf4 {[%clk 0:01:49.8]} 10... dxc2 {[%clk 0:02:14.7]} 11. Qxc2 {[%clk
0:01:50.7]} 11... e6 {[%clk 0:02:10.8]} 12. Rd1 {[%clk 0:01:35.1]} 12... Qc7
{[%clk 0:02:03.6]} 13. Nbd2 {[%clk 0:01:23.6]} 13... Be7 {[%clk 0:01:57]} 14. c4
{[%clk 0:00:49.5]} 14... O-O {[%clk 0:01:55.4]} 15. cxd5 {[%clk 0:00:49.3]}
15... exd5 {[%clk 0:01:55.4]} 16. Rac1 {[%clk 0:00:47.9]} 16... Be6 {[%clk
0:01:50.5]} 17. Nb3 {[%clk 0:00:39.8]} 17... Rac8 {[%clk 0:01:49.5]} 18. Qd2
{[%clk 0:00:24.2]} 18... Qb6 {[%clk 0:01:36.1]} 19. Be3 {[%clk 0:00:19.7]} 19...
Qa6 {[%clk 0:01:33.6]} 20. a3 {[%clk 0:00:17.4]} 20... b6 {[%clk 0:01:33.2]} 21.
Nbd4 {[%clk 0:00:17.7]} 21... Nxd4 {[%clk 0:01:14.9]} 22. Nxd4 {[%clk
0:00:17.6]} 22... Rxc1 {[%clk 0:01:14.9]} 23. Rxc1 {[%clk 0:00:17.6]} 23... Rc8
{[%clk 0:01:15.5]} 24. Nxe6 {[%clk 0:00:17]} 24... fxe6 {[%clk 0:01:13.2]} 25.
Bg5 {[%clk 0:00:14.4]} 25... Bf8 {[%clk 0:01:07.3]} 26. Be3 {[%clk 0:00:05.9]}
26... Rc4 {[%clk 0:01:04.2]} 27. Rxc4 {[%clk 0:00:04.9]} 27... Qxc4 {[%clk
0:01:03.7]} 28. g3 {[%clk 0:00:03.5]} 28... Kf7 {[%clk 0:00:57.3]} 29. h4 {[%clk
0:00:03.7]} 29... Ke8 {[%clk 0:00:55.5]} 30. Kh2 {[%clk 0:00:04.2]} 30... Kd7
{[%clk 0:00:54.4]} 31. Bf4 {[%clk 0:00:04]} 31... a5 {[%clk 0:00:51.5]} 32. Be3
{[%clk 0:00:04.3]} 32... Kc6 {[%clk 0:00:50.7]} 33. Qd1 {[%clk 0:00:04.3]} 33...
Bc5 {[%clk 0:00:48.9]} 34. Bxc5 {[%clk 0:00:03.1]} 34... Qxc5 {[%clk 0:00:46.2]}
35. Qf3 {[%clk 0:00:03.3]} 35... Qd4 {[%clk 0:00:37.4]} 36. Qe2 {[%clk
0:00:03.7]} 36... b5 {[%clk 0:00:33.6]} 37. Qc2+ {[%clk 0:00:03.6]} 37... Kb6
{[%clk 0:00:33.6]} 38. Kg1 {[%clk 0:00:02.5]} 38... Qxe5 {[%clk 0:00:31.4]} 39.
Qxh7 {[%clk 0:00:02.3]} 39... Qxb2 {[%clk 0:00:31.4]} 40. Qg8 {[%clk 0:00:02.5]}
40... Qb1+ {[%clk 0:00:17.1]} 41. Kh2 {[%clk 0:00:02]} 41... Qf5 {[%clk
0:00:17.1]} 42. Qb8+ {[%clk 0:00:02.3]} 42... Kc5 {[%clk 0:00:16.5]} 43. Qc7+
{[%clk 0:00:02.8]} 43... Kd4 {[%clk 0:00:16.7]} 44. Qb6+ {[%clk 0:00:02.8]}
44... Kc4 {[%clk 0:00:14.9]} 45. Qxa5 {[%clk 0:00:03]} 45... Qxf2+ {[%clk
0:00:14.4]} 46. Kh3 {[%clk 0:00:03.6]} 46... Qf5+ {[%clk 0:00:14]} 47. Kh2
{[%clk 0:00:03.8]} 47... e5 {[%clk 0:00:13.9]} 48. Qb4+ {[%clk 0:00:03.5]} 48...
Kd3 {[%clk 0:00:13.8]} 49. Qxb5+ {[%clk 0:00:04.4]} 49... Kd4 {[%clk 0:00:10.9]}
50. Qb4+ {[%clk 0:00:03.9]} 50... Ke3 {[%clk 0:00:11.1]} 51. a4 {[%clk
0:00:02.3]} 51... Qf2+ {[%clk 0:00:09.1]} 52. Kh3 {[%clk 0:00:02]} 52... d4
{[%clk 0:00:09.6]} 53. Qb3+ {[%clk 0:00:01.9]} 53... d3 {[%clk 0:00:08.5]} 54.
a5 {[%clk 0:00:02.3]} 54... Qf5+ {[%clk 0:00:07.6]} 55. Kh2 {[%clk 0:00:02.3]}
55... Qf2+ {[%clk 0:00:07.3]} 56. Kh3 {[%clk 0:00:02.4]} 56... e4 {[%clk
0:00:08.2]} 57. Qb6+ {[%clk 0:00:02.3]} 57... Ke2 {[%clk 0:00:07.8]} 58. Qb2+
{[%clk 0:00:02.6]} 58... d2 {[%clk 0:00:07.5]} 59. Qb5+ {[%clk 0:00:02.7]} 59...
Ke1 {[%clk 0:00:07]} 60. Qb4 {[%clk 0:00:02.4]} 60... e3 {[%clk 0:00:06.7]} 61.
a6 {[%clk 0:00:02.4]} 61... Qf5+ {[%clk 0:00:06.7]} 62. Kh2 {[%clk 0:00:02.4]}
62... Qf2+ {[%clk 0:00:06.9]} 63. Kh3 {[%clk 0:00:02.9]} 63... Kf1 {[%clk
0:00:07.1]} 64. Qc4+ {[%clk 0:00:02.6]} 64... Kg1 {[%clk 0:00:06.7]} 0-1